bitfinex-derivatives/quotes_BTCF0:USTF0_20241125
["timestamp","ask_amount","ask_price","bid_price","bid_amount"]
[1732552934900,0.65042632,95995.0,95994.0,0.33619636]
[1732552935109,0.46552844,95995.0,95994.0,0.11745936]
[1732552935312,0.46552844,95995.0,95980.0,0.09379413]
[1732552935313,0.052083,95976.0,95964.0,0.01]
[1732552935597,0.3608,95976.0,95970.0,0.09379413]
[1732552935806,0.3608,95976.0,95972.0,0.052085]
[1732552935991,0.3608,95984.0,95974.0,0.3608]
[1732552936188,0.0026,95991.0,95975.0,0.2005139]
[1732552936397,0.36436001,95995.0,95981.0,0.14587413]
[1732552936595,0.36436001,95995.0,95982.0,0.43764]
[1732552936596,0.3618,95995.0,95982.0,0.43764]
[1732552937398,0.3618,95995.0,95983.0,0.0553]
[1732552937598,0.3608,95995.0,95984.0,0.20044]
[1732552938298,0.001,95991.0,95984.0,0.20044]
[1732552938694,0.001,95991.0,95983.0,0.0553]
[1732552939003,0.052078,95985.0,95984.0,0.20044]
[1732552939502,0.052079,95983.0,95982.0,0.03088447]
[1732552939691,0.27843874,95983.0,95982.0,0.20044]
[1732552940096,0.05208,95982.0,95975.0,7.39e-05]
[1732552940294,0.22635974,95978.0,95976.0,0.20044]
[1732552941303,0.052082,95977.0,95976.0,0.20044]
[1732552941604,0.22635974,95978.0,95975.0,0.03140864]
[1732552941801,0.22635974,95978.0,95976.0,0.19984]
[1732552942304,0.22635974,95978.0,95975.0,0.03140864]
[1732552942491,0.00965819,95977.0,95975.0,0.00795562]
[1732552942695,0.00965819,95977.0,95968.0,0.18758826]
[1732552942696,0.02511129,95976.0,95974.0,0.36819602]
[1732552942894,0.22735974,95978.0,95974.0,0.56803602]
[1732552942895,0.02511129,95975.0,95974.0,0.56803602]
[1732552943093,0.02511129,95975.0,95974.0,0.23185406]
[1732552943301,0.07719429,95975.0,95974.0,0.03201406]
[1732552943510,0.052089,95965.0,95964.0,0.01007514]
[1732552943722,0.64890738,95965.0,95964.0,0.01007514]
[1732552943899,0.66436121,95965.0,95964.0,0.01007514]
[1732552944100,0.61227221,95965.0,95964.0,0.01007514]
[1732552946209,0.58815974,95965.0,95964.0,0.01007514]
[1732552946398,0.58915974,95965.0,95964.0,0.01007514]
[1732552947494,0.62324511,95965.0,95964.0,0.01007514]
[1732552948504,0.62324511,95965.0,95963.0,0.16434424]
[1732552948709,0.03408537,95964.0,95963.0,0.16434424]
[1732552949305,0.02756953,95964.0,95963.0,0.16434424]
[1732552949512,0.02756953,95964.0,95963.0,0.16442226]
[1732552951408,0.01060366,95964.0,95963.0,0.16442226]
[1732552951905,0.01060366,95964.0,95963.0,7.802e-05]
[1732552952100,0.2379634,95964.0,95963.0,0.19995802]
[1732552952298,0.2389634,95964.0,95963.0,0.19995802]
[1732552953397,0.2389634,95964.0,95963.0,0.16737954]
[1732552954205,0.25418806,95964.0,95963.0,0.16737954]
[1732552954409,0.25418806,95964.0,95963.0,0.16748236]
[1732552954804,0.25418806,95964.0,95963.0,0.10883991]
[1732552955205,0.2389634,95964.0,95963.0,0.10883991]
[1732552955898,0.2389634,95964.0,95963.0,0.00010282]
[1732552956304,0.25414677,95964.0,95963.0,0.00010282]
[1732552956510,0.40819463,95964.0,95963.0,0.00010282]
[1732552956812,0.30481913,95964.0,95963.0,0.00010282]
[1732552957404,0.28963576,95964.0,95963.0,0.00010282]
[1732552957599,0.3921455,95964.0,95963.0,0.00010282]
[1732552957800,0.28837903,95964.0,95963.0,0.00010282]
[1732552959101,0.052094,95956.0,95955.0,0.03095099]
[1732552959302,0.052094,95956.0,95931.0,0.38644]
[1732552959303,0.42082004,95956.0,95946.0,0.09379413]
[1732552959608,0.15448175,95948.0,95946.0,0.29367413]
[1732552959808,0.06144534,95947.0,95946.0,0.19988]
[1732552960202,0.06144534,95947.0,95946.0,0.00011428]
[1732552960510,0.46357784,95947.0,95946.0,0.00011428]
[1732552960817,0.11176469,95947.0,95946.0,0.00011428]
[1732552961206,0.10882747,95947.0,95946.0,0.00011428]
[1732552961404,0.10882747,95947.0,95942.0,0.17657402]
[1732552961608,0.21122287,95946.0,95942.0,0.17657402]
[1732552961803,0.05672847,95945.0,95942.0,0.17657402]
[1732552962009,0.05672847,95944.0,95942.0,0.17657402]
[1732552962318,0.00602096,95943.0,95942.0,0.17657402]
[1732552962507,0.00602096,95943.0,95942.0,0.17668615]
[1732552963203,0.002,95945.0,95942.0,0.00011213]
[1732552963910,0.001,95945.0,95944.0,0.3608]
[1732552964307,0.001,95945.0,95940.0,0.55053398]
[1732552964709,0.001,95945.0,95940.0,0.53008663]
[1732552964913,0.0508,95955.0,95940.0,0.53008663]
[1732552965112,0.001,95943.0,95940.0,0.53008663]
[1732552965307,0.001,95943.0,95941.0,8.619e-05]
[1732552965612,0.002,95945.0,95941.0,8.619e-05]
[1732552966202,0.001,95945.0,95942.0,0.3608]
[1732552966405,0.052096,95953.0,95942.0,0.3608]
[1732552966406,0.001,95943.0,95942.0,0.3608]
[1732552966807,0.001,95943.0,95941.0,8.619e-05]
[1732552967218,0.002,95945.0,95941.0,8.619e-05]
[1732552968005,0.3634,95959.0,95941.0,8.619e-05]
[1732552968211,0.0026,95964.0,95956.0,0.052093]
[1732552968413,0.36228,95968.0,95957.0,0.61430195]
[1732552968615,0.22635974,95968.0,95961.0,0.30215651]
[1732552969516,0.22735974,95968.0,95961.0,0.30215651]
[1732552969718,0.22835974,95968.0,95961.0,0.30215651]
[1732552971009,0.22635974,95962.0,95958.0,0.09379413]
[1732552971218,0.22635974,95962.0,95954.0,0.19956]
[1732552971219,0.22635974,95959.0,95954.0,0.19956]
[1732552971413,0.58715974,95959.0,95952.0,0.09379413]
[1732552971613,0.58715974,95959.0,95953.0,0.19956]
[1732552972211,0.22635974,95958.0,95953.0,0.19956]
[1732552972420,0.22635974,95958.0,95954.0,0.19956]
[1732552973816,0.001,95959.0,95954.0,0.49956]
[1732552974016,0.00383751,95958.0,95955.0,0.1445]
[1732552974218,0.10018,95987.0,95981.0,0.05208]
[1732552974416,0.32505974,95987.0,95986.0,0.31348007]
[1732552974616,0.0987,95987.0,95986.0,0.51304007]
[1732552974820,0.0987,95987.0,95986.0,0.19956]
[1732552974821,0.32505974,95987.0,95986.0,0.19956]
[1732552975126,0.32505974,95987.0,95986.0,0.56036]
[1732552975728,0.32505974,95987.0,95986.0,0.3608]
[1732552975916,0.32505974,95987.0,95986.0,0.56036]
[1732552976115,0.32605974,95987.0,95986.0,0.56036]
[1732552976323,0.32605974,95987.0,95986.0,0.19956]
[1732552976622,0.32605974,95987.0,95986.0,0.56036]
[1732552977327,0.32705974,95987.0,95986.0,0.59166978]
[1732552978125,0.03501,95995.0,95986.0,0.59166978]
[1732552978329,0.03501,95995.0,95994.0,0.412873]
[1732552978515,0.0501,96011.0,95994.0,0.3608]
[1732552978722,0.0501,96011.0,96004.0,0.3608]
[1732552979025,0.0501,96011.0,96005.0,0.19956]
[1732552979230,0.22635974,96006.0,96005.0,0.19956]
[1732552979629,0.22635974,96006.0,95997.0,0.19956]
[1732552979831,0.0501,96011.0,95997.0,0.12196]
[1732552979832,0.22635974,95998.0,95997.0,0.12196]
[1732552980222,0.22635974,95998.0,95997.0,0.15253176]
[1732552980730,0.22635974,95998.0,95997.0,0.03057176]
[1732552981023,0.22635974,95998.0,95994.0,0.3608]
[1732552981024,0.27843074,95998.0,95994.0,0.3608]
[1732552981226,0.27843074,95998.0,95990.0,0.19956]
[1732552981227,0.22635974,95995.0,95990.0,0.19956]
[1732552981430,0.22635974,95991.0,95986.0,0.22047534]
[1732552981616,0.22635974,95987.0,95986.0,0.02095534]
[1732552982219,0.31906249,95987.0,95986.0,0.00010718]
[1732552982429,0.22635974,95987.0,95986.0,0.00010718]
[1732552982628,0.31903492,95987.0,95986.0,0.00010718]
[1732552982822,0.22635974,95987.0,95986.0,0.00010718]
[1732552983022,0.001,95991.0,95986.0,0.36090718]
[1732552983231,0.001,95991.0,95989.0,0.052075]
[1732552983528,0.001,95991.0,95990.0,0.0477]
[1732552983918,0.22735974,95991.0,95986.0,0.36090718]
[1732552984126,0.22635974,95987.0,95986.0,0.36090718]
[1732552984331,0.22635974,95987.0,95986.0,0.56042718]
[1732552984531,0.22735974,95987.0,95986.0,0.36090718]
[1732552984741,0.22735974,95987.0,95986.0,0.56042718]
[1732552985728,0.22635974,95987.0,95986.0,0.56942718]
[1732552986222,0.22735974,95987.0,95986.0,0.56942718]
[1732552986519,0.22735974,95987.0,95986.0,0.36990718]
[1732552986821,0.22735974,95987.0,95986.0,0.56942718]
[1732552987021,0.22735974,95987.0,95986.0,0.59026966]
[1732552987228,0.001,95987.0,95986.0,0.58126966]
[1732552987428,0.002,95987.0,95986.0,0.68216966]
[1732552987836,0.001,95987.0,95986.0,0.68216966]
[1732552988129,0.002,95987.0,95986.0,0.68216966]
[1732552988933,0.0957,96004.0,95986.0,0.68216966]
[1732552989135,0.0467,96004.0,96003.0,0.052068]
[1732552989330,0.0467,96004.0,96003.0,0.19952]
[1732552989331,0.27305974,96004.0,96003.0,0.19952]
[1732552989633,0.27305974,96004.0,96003.0,0.251588]
[1732552991038,0.0981,96024.0,96014.0,0.052062]
[1732552991039,0.0514,96024.0,96014.0,0.052062]
[1732552991248,0.0514,96024.0,96014.0,0.412862]
[1732552991531,0.22645709,96015.0,96014.0,0.3608]
[1732552991722,0.22645709,96015.0,96003.0,0.03097395]
[1732552991929,0.3608,96010.0,96004.0,0.19948]
[1732552992131,0.15439635,96005.0,96003.0,0.19948]
[1732552992324,0.001,96004.0,96000.0,0.05207]
[1732552992635,0.22635974,96001.0,96000.0,0.25155]
[1732552992830,0.22635974,96001.0,96000.0,0.61235]
[1732552993132,0.0505,96014.0,96000.0,0.56028]
[1732552993133,0.001,96010.0,96000.0,0.56028]
[1732552993330,0.22635974,96002.0,96001.0,0.052069]
[1732552994132,0.0514,96024.0,96013.0,0.052062]
[1732552994336,9.735e-05,96015.0,96011.0,0.3608]
[1732552994535,9.735e-05,96015.0,96005.0,0.09379413]
[1732552994739,0.22635974,96006.0,96003.0,0.052068]
[1732552995035,0.001,96002.0,96000.0,0.70614313]
[1732552995229,0.001,96002.0,96000.0,0.412869]
[1732552995429,9.735e-05,96015.0,96001.0,0.19948]
[1732552995837,0.22735974,96002.0,96001.0,0.19948]
[1732552996033,0.22735974,96002.0,96000.0,0.48574982]
[1732552996232,0.37135974,96001.0,96000.0,0.39195569]
[1732552998128,0.42342874,96001.0,96000.0,0.03115569]
[1732552998429,0.42342874,96001.0,95973.0,0.86354476]
[1732552998430,0.11161528,95981.0,95973.0,0.86354476]
[1732552998639,0.59939635,96001.0,95974.0,0.19948]
[1732552998640,0.052075,95990.0,95974.0,0.19948]
[1732552998833,0.11161528,95975.0,95973.0,0.86354476]
[1732552999133,0.11161528,95974.0,95973.0,0.53356911]
[1732552999336,0.11161528,95974.0,95973.0,0.09592911]
[1732552999537,0.11161528,95974.0,95973.0,0.09606067]
[1732553000034,0.11161528,95974.0,95973.0,0.03095591]
[1732553000630,0.11261528,95974.0,95973.0,0.03095591]
[1732553001329,0.47341528,95974.0,95973.0,0.03095591]
[1732553001729,0.52549928,95974.0,95973.0,0.03095591]
[1732553001933,0.57617406,95974.0,95973.0,0.02133563]
[1732553002136,0.57617406,95974.0,95966.0,0.00156293]
[1732553002137,0.052088,95967.0,95966.0,0.00156293]
[1732553002326,0.11116528,95965.0,95944.0,0.0521]
[1732553002527,0.11116528,95945.0,95944.0,0.0621]
[1732553003133,0.11116528,95945.0,95944.0,0.0101224]
[1732553003737,0.11216528,95945.0,95944.0,0.0121224]
[1732553003935,0.11216528,95945.0,95944.0,0.0211224]
[1732553004431,0.11216528,95945.0,95944.0,0.0121224]
[1732553004736,0.16426528,95945.0,95944.0,0.0121224]
[1732553005332,0.16426528,95945.0,95931.0,0.03084692]
[1732553005333,0.052102,95941.0,95931.0,0.01]
[1732553005532,0.052101,95943.0,95931.0,0.02]
[1732553005726,0.001,95945.0,95931.0,0.02]
[1732553005935,0.052102,95942.0,95931.0,0.02]
[1732553006339,0.052102,95942.0,95936.0,0.00011189]
[1732553006541,0.3608,95938.0,95936.0,0.01011189]
[1732553006740,0.3608,95938.0,95936.0,0.00011189]
[1732553006943,0.31272,95937.0,95936.0,0.00011189]
[1732553007945,0.3608,95938.0,95936.0,0.00011189]
[1732553008241,0.3608,95938.0,95936.0,0.05221589]
[1732553008448,0.3618,95938.0,95936.0,0.05221589]
[1732553008634,0.3618,95938.0,95936.0,0.00011189]
[1732553008841,0.3618,95938.0,95937.0,0.251424]
[1732553008842,0.001,95938.0,95937.0,0.251424]
[1732553009037,0.001,95938.0,95937.0,0.301724]
[1732553009243,0.3608,95956.0,95943.0,0.0521]
[1732553009437,0.3608,95956.0,95937.0,0.34341413]
[1732553009638,0.3608,95956.0,95945.0,0.052099]
[1732553010059,0.3608,95956.0,95941.0,0.3608]
[1732553010343,0.3608,95956.0,95944.0,0.0521]
[1732553010750,0.3608,95956.0,95945.0,0.052099]
[1732553011244,0.3608,95965.0,95945.0,0.052099]
[1732553011744,0.00110633,95947.0,95945.0,0.052099]
[1732553011949,0.00110633,95947.0,95946.0,0.3608]
[1732553012444,0.00110633,95947.0,95945.0,0.052099]
[1732553012753,0.00110633,95947.0,95946.0,0.3608]
[1732553012931,0.00110633,95947.0,95946.0,0.56016]
[1732553013138,0.00110633,95947.0,95946.0,0.3608]
[1732553013338,0.00110633,95947.0,95945.0,0.03153284]
[1732553013639,0.00110633,95947.0,95943.0,0.19936]
[1732553014140,0.00110633,95947.0,95943.0,0.23053309]
[1732553014446,0.00110633,95947.0,95943.0,0.03117309]
[1732553014637,0.00110633,95947.0,95937.0,0.09379413]
[1732553015648,0.00110633,95947.0,95937.0,0.29315413]
[1732553017040,0.00110633,95947.0,95937.0,0.09379413]
[1732553017240,0.00110633,95947.0,95937.0,0.29315413]
[1732553017738,0.00110633,95947.0,95938.0,0.02085008]
[1732553018445,0.05320533,95947.0,95938.0,0.02085008]
[1732553018845,0.00110633,95947.0,95938.0,0.02085008]
[1732553019549,0.3608,95946.0,95938.0,0.02085008]
[1732553019748,0.3608,95946.0,95936.0,0.23083459]
[1732553019950,0.3608,95937.0,95936.0,0.03147459]
[1732553020147,0.412904,95937.0,95936.0,0.03147459]
[1732553021050,0.052104,95937.0,95936.0,0.03147459]
[1732553021249,0.725624,95937.0,95936.0,0.03147459]
[1732553021447,0.67352,95937.0,95936.0,0.03147459]
[1732553022552,0.67452,95937.0,95936.0,0.03147459]
[1732553022765,0.72692,95937.0,95936.0,0.00786269]
[1732553023057,0.052107,95932.0,95931.0,0.01]
[1732553023245,0.052107,95932.0,95931.0,0.04185738]
[1732553023445,0.364827,95932.0,95931.0,0.04185738]
[1732553023654,0.364827,95932.0,95931.0,0.01045498]
[1732553023855,0.052109,95928.0,95927.0,7.668e-05]
[1732553024155,0.412909,95928.0,95927.0,7.668e-05]
[1732553024355,0.72511663,95928.0,95927.0,7.668e-05]
[1732553024651,0.3608,95928.0,95917.0,0.02049719]
[1732553024855,0.3608,95928.0,95912.0,0.0507]
[1732553024856,0.3608,95918.0,95912.0,0.0507]
[1732553025044,0.3608,95918.0,95912.0,0.08181287]
[1732553025652,0.3608,95918.0,95913.0,0.00012276]
[1732553026350,0.3608,95918.0,95913.0,0.05223976]
[1732553026546,0.3618,95918.0,95913.0,0.05223976]
[1732553027156,0.001,95918.0,95913.0,0.05223976]
[1732553027554,0.001,95918.0,95913.0,0.00012276]
[1732553028354,0.053115,95918.0,95913.0,0.00012276]
[1732553028855,0.052116,95915.0,95913.0,0.00012276]
[1732553029445,0.3608,95914.0,95913.0,0.00012276]
[1732553030154,0.41150253,95914.0,95913.0,0.00012276]
[1732553030745,0.3608,95914.0,95913.0,0.00012276]
[1732553031854,0.59674937,95914.0,95913.0,0.00012276]
[1732553032054,0.59774937,95914.0,95913.0,0.00012276]
[1732553032247,0.51649199,95914.0,95913.0,0.00012276]
[1732553032447,0.3618,95914.0,95913.0,0.00012276]
[1732553034052,0.413917,95914.0,95913.0,0.00012276]
[1732553036654,0.53757917,95914.0,95913.0,0.00012276]
[1732553037548,0.413917,95914.0,95913.0,0.00012276]
[1732553037749,0.53757917,95914.0,95913.0,0.00012276]
[1732553038451,0.413917,95914.0,95913.0,0.00012276]
[1732553038860,0.3618,95914.0,95913.0,0.00012276]
[1732553043463,0.48546217,95914.0,95913.0,0.00012276]
[1732553044359,0.3618,95914.0,95913.0,0.00012276]
[1732553044559,0.48562212,95914.0,95913.0,0.00012276]
[1732553044765,0.3618,95914.0,95913.0,0.00012276]
[1732553044968,0.001,95914.0,95913.0,0.04812276]
[1732553045264,0.001,95914.0,95913.0,0.09552276]
[1732553047354,0.12482212,95914.0,95913.0,0.09552276]
[1732553047955,0.05192212,95914.0,95913.0,0.09552276]
[1732553048269,0.15461707,95926.0,95913.0,0.09552276]
[1732553048569,0.15461707,95927.0,95925.0,0.052111]
[1732553048757,0.05220533,95947.0,95926.0,0.0477]
[1732553048758,0.15461707,95932.0,95926.0,0.0477]
[1732553049257,0.15461707,95929.0,95926.0,0.0477]
[1732553049454,0.05068714,95930.0,95926.0,0.0477]
[1732553049455,0.15461707,95930.0,95926.0,0.0477]
[1732553049970,0.15461707,95936.0,95934.0,0.052106]
[1732553050266,0.00010633,95947.0,95927.0,0.19912]
[1732553050267,0.15461707,95939.0,95935.0,0.0478]
[1732553050563,0.51541707,95942.0,95935.0,0.0478]
[1732553050766,0.3608,95942.0,95935.0,0.0478]
[1732553050964,0.3608,95942.0,95940.0,0.052102]
[1732553051158,0.3608,95942.0,95936.0,0.0453]
[1732553051558,0.15461707,95941.0,95936.0,0.0453]
[1732553051758,0.3608,95942.0,95936.0,0.0453]
[1732553051759,0.51541707,95942.0,95936.0,0.0453]
[1732553051958,0.15461707,95940.0,95936.0,0.0453]
[1732553052158,0.15461707,95941.0,95935.0,0.07870024]
[1732553052365,0.3608,95942.0,95935.0,0.07870024]
[1732553052867,0.3608,95942.0,95936.0,0.00325852]
[1732553053165,0.3608,95942.0,95935.0,0.07870024]
[1732553053166,0.3608,95942.0,95935.0,0.13080524]
[1732553053369,0.3608,95942.0,95936.0,0.05536252]
[1732553053563,0.3608,95942.0,95937.0,0.19908]
[1732553053758,0.001,95941.0,95937.0,0.19908]
[1732553054368,0.3608,95942.0,95937.0,0.19908]
[1732553054668,0.3618,95942.0,95937.0,0.19908]
[1732553055369,0.001,95941.0,95937.0,0.19908]
[1732553056070,0.001,95941.0,95936.0,0.19908]
[1732553056961,0.00010633,95947.0,95946.0,0.052099]
[1732553057163,0.00010633,95947.0,95946.0,0.3608]
[1732553057463,0.00010633,95947.0,95946.0,0.412899]
[1732553057766,0.24528,95978.0,95946.0,0.412899]
[1732553057767,0.15461707,95976.0,95946.0,0.67348]
[1732553057970,0.0462,95978.0,95958.0,0.412892]
[1732553058268,0.052083,95976.0,95959.0,0.19908]
[1732553058771,0.00013249,95969.0,95959.0,0.19908]
[1732553058960,0.00013249,95969.0,95960.0,0.052092]
[1732553059162,0.15461707,95992.0,95971.0,0.052085]
[1732553059372,0.097574,95993.0,95982.0,0.09379413]
[1732553059968,0.0455,95993.0,95982.0,0.09379413]
[1732553060172,0.00011334,95991.0,95982.0,0.09379413]
[1732553060561,0.00011334,95991.0,95989.0,0.052076]
[1732553060764,0.00011334,95991.0,95984.0,0.3608]
[1732553061073,0.00011334,95991.0,95989.0,0.052076]
[1732553061770,0.00011334,95991.0,95990.0,0.43792]
[1732553061968,0.3608,96013.0,96008.0,0.052065]
[1732553062176,0.046,96027.0,96012.0,0.3608]
[1732553062364,0.20101707,96038.0,96021.0,0.3608]
[1732553062564,0.0464,96038.0,96028.0,0.09379413]
[1732553062759,0.36228,96040.0,96028.0,0.09379413]
[1732553062962,0.36228,96040.0,96035.0,7.43e-05]
[1732553062963,0.3608,96040.0,96035.0,7.43e-05]
[1732553063163,0.0001091,96039.0,96035.0,7.43e-05]
[1732553063577,0.05205,96037.0,96035.0,7.43e-05]
[1732553063762,0.0001091,96039.0,96035.0,7.43e-05]
[1732553063971,0.0001091,96039.0,96036.0,0.19864]
[1732553064674,0.0001091,96039.0,96037.0,0.05205]
[1732553065276,0.0001091,96039.0,96038.0,0.0461]
[1732553067073,0.3608,96070.0,96038.0,0.71926]
[1732553067263,0.0446,96073.0,96060.0,0.09379413]
[1732553067469,0.3608,96069.0,96060.0,0.09379413]
[1732553068073,8.375e-05,96062.0,96058.0,0.19856]
[1732553068269,0.3608,96060.0,96055.0,0.19852]
[1732553068491,0.3608,96060.0,96045.0,0.43772]
[1732553068681,0.3608,96060.0,96038.0,0.3608]
[1732553068682,0.3608,96050.0,96038.0,0.3608]
[1732553068976,0.3608,96040.0,96015.0,0.4376]
[1732553069181,0.3608,96036.0,96010.0,0.09379413]
[1732553069365,0.3608,96036.0,95998.0,0.4376]
[1732553069366,0.3608,96020.0,96007.0,0.19852]
[1732553069567,0.09379413,96030.0,96007.0,0.19852]
[1732553069568,0.3608,96025.0,96011.0,0.052064]
[1732553069768,0.3608,96028.0,96020.0,0.09379413]
[1732553069967,0.3608,96028.0,96018.0,0.09379413]
[1732553070175,0.0475,96039.0,96022.0,0.3608]
[1732553070377,0.3608,96048.0,96033.0,0.052052]
[1732553070567,0.3608,96048.0,96037.0,0.14055837]
[1732553072071,0.052045,96047.0,96037.0,0.14055837]
[1732553072378,0.3608,96040.0,96028.0,0.052054]
[1732553072577,0.3608,96040.0,96024.0,0.19852]
[1732553072878,0.3608,96040.0,96030.0,0.14055837]
[1732553073185,0.3608,96040.0,96038.0,0.052049]
[1732553073369,0.3608,96040.0,96022.0,0.3608]
[1732553073770,0.3608,96040.0,96033.0,0.052052]
[1732553073973,0.3608,96040.0,96030.0,0.14055837]
[1732553074175,0.3608,96048.0,96041.0,0.052047]
[1732553074374,0.3608,96048.0,96038.0,0.14055837]
[1732553074580,0.3608,96048.0,96035.0,0.052051]
[1732553075486,0.3608,96048.0,96030.0,0.14055837]
[1732553076278,0.3608,96048.0,96034.0,0.052051]
[1732553076882,0.3608,96048.0,96030.0,0.14055837]
[1732553077081,0.3608,96048.0,96036.0,0.05205]
[1732553077287,0.3608,96038.0,96029.0,0.0208389]
[1732553077587,0.3608,96038.0,96010.0,0.14055837]
[1732553077773,0.3608,96030.0,96019.0,0.19858483]
[1732553078085,0.3608,96030.0,96019.0,0.03117563]
[1732553078273,0.3608,96030.0,96020.0,0.19848]
[1732553078473,0.05361001,96038.0,96020.0,0.19848]
[1732553078474,0.3608,96021.0,96020.0,0.19848]
[1732553078680,0.3608,96032.0,96020.0,0.19848]
[1732553078875,0.00913122,96021.0,96020.0,0.16592041]
[1732553079479,0.05703122,96021.0,96020.0,0.16592041]
[1732553079882,0.05703122,96021.0,96019.0,0.03117563]
[1732553080095,0.00913122,96020.0,96019.0,0.03117563]
[1732553080585,0.0479,96021.0,96019.0,0.03117563]
[1732553081075,0.0479,96021.0,96019.0,0.00234769]
[1732553081274,0.0479,96021.0,96013.0,0.19848]
[1732553082077,0.05205,96037.0,96010.0,0.14055837]
[1732553082078,0.05205,96037.0,96019.0,0.052059]
[1732553082273,0.0464,96036.0,96020.0,0.33903837]
[1732553083084,0.0464,96036.0,96017.0,0.3608]
[1732553083085,0.412853,96032.0,96017.0,0.3608]
[1732553083285,0.052058,96022.0,96014.0,0.00013011]
[1732553083585,0.052059,96020.0,96014.0,0.00013011]
[1732553083785,0.3608,96015.0,96014.0,0.00013011]
[1732553083986,0.37009966,96015.0,96013.0,0.00789929]
[1732553084175,0.05569966,96014.0,96001.0,0.19848]
[1732553084380,0.3608,96007.0,95993.0,0.02083364]
[1732553084577,0.05207,96000.0,95990.0,0.43756]
[1732553084784,0.3608,96007.0,95989.0,0.20004267]
[1732553084785,0.07761588,95999.0,95989.0,0.20004267]
[1732553084978,9.5e-05,95991.0,95989.0,0.20004267]
[1732553085179,0.03241588,95990.0,95989.0,0.00156267]
[1732553085388,0.03241588,95990.0,95989.0,0.00010462]
[1732553085683,0.08449088,95990.0,95989.0,5.93e-06]
[1732553086184,0.39701088,95990.0,95989.0,5.93e-06]
[1732553087084,0.89553088,95990.0,95989.0,5.93e-06]
[1732553087689,0.863115,95990.0,95989.0,5.93e-06]
[1732553088680,0.563115,95990.0,95989.0,5.93e-06]
[1732553089280,0.863115,95990.0,95989.0,5.93e-06]
[1732553089488,0.052089,95965.0,95961.0,0.00156287]
[1732553089694,0.41289,95963.0,95961.0,0.00156287]
[1732553090087,0.052095,95954.0,95947.0,0.052098]
[1732553090287,0.3608,95963.0,95941.0,0.03155692]
[1732553090288,0.3608,95953.0,95941.0,0.03155692]
[1732553090489,0.052098,95948.0,95942.0,0.0001112]
[1732553090689,0.3608,95953.0,95942.0,0.0001112]
[1732553090895,0.412895,95953.0,95947.0,0.052098]
[1732553091191,0.052097,95951.0,95942.0,0.0001112]
[1732553091898,0.3618,95953.0,95942.0,0.0001112]
[1732553091899,0.001,95948.0,95942.0,0.0091112]
[1732553092288,0.052097,95950.0,95942.0,0.0001112]
[1732553092790,0.052097,95950.0,95942.0,0.03160079]
[1732553093090,0.052098,95949.0,95942.0,0.0001112]
[1732553093281,0.052099,95947.0,95942.0,0.0001112]
[1732553095594,0.3608,95953.0,95942.0,0.0001112]
[1732553095987,0.052098,95949.0,95942.0,0.0001112]
[1732553096595,0.052099,95947.0,95942.0,0.0001112]
[1732553096788,0.3608,95953.0,95942.0,0.0001112]
[1732553097091,0.052101,95944.0,95942.0,0.0001112]
[1732553097297,0.3608,95943.0,95942.0,0.0001112]
[1732553097494,0.67348,95943.0,95942.0,0.0001112]
[1732553098289,0.052108,95930.0,95919.0,0.052114]
[1732553098507,0.3608,95924.0,95919.0,0.052114]
[1732553099200,0.046,95940.0,95916.0,0.03187694]
[1732553099201,0.3608,95932.0,95916.0,0.03187694]
[1732553099395,0.3608,95932.0,95920.0,0.00013064]
[1732553099595,0.05211,95926.0,95920.0,0.00013064]
[1732553099996,0.052107,95931.0,95920.0,0.00013064]
[1732553100187,0.3608,95932.0,95920.0,0.00013064]
[1732553100695,0.3608,95924.0,95920.0,0.00013064]
[1732553101102,0.3608,95932.0,95926.0,0.05211]
[1732553101398,0.3608,95943.0,95920.0,0.00013064]
[1732553101399,0.3608,95943.0,95932.0,0.052107]
[1732553102292,0.3608,95943.0,95936.0,0.052104]
[1732553102600,0.3608,95943.0,95930.0,0.09393357]
[1732553102601,0.3608,95943.0,95931.0,0.0471]
[1732553102791,0.3608,95943.0,95936.0,0.052104]
[1732553102986,0.3608,95943.0,95931.0,0.0957]
[1732553102987,0.3608,95943.0,95937.0,0.052104]
[1732553103194,0.3608,95943.0,95931.0,0.07911001]
[1732553103394,0.3608,95943.0,95931.0,0.03201001]
[1732553103694,0.3608,95943.0,95930.0,0.09393357]
[1732553103898,0.3608,95943.0,95934.0,0.052105]
[1732553104295,0.412896,95952.0,95935.0,0.052105]
[1732553104599,0.052099,95946.0,95930.0,0.052108]
[1732553104800,0.3608,95939.0,95929.0,0.19832]
[1732553104993,0.3608,95939.0,95921.0,0.0501]
[1732553105193,0.052109,95928.0,95922.0,0.19832]
[1732553105393,0.36092389,95923.0,95920.0,0.03196546]
[1732553105593,0.052112,95922.0,95920.0,0.03196546]
[1732553108299,0.052112,95922.0,95920.0,0.00013064]
[1732553110397,0.36092389,95923.0,95919.0,0.03169717]
[1732553110398,0.052113,95920.0,95919.0,0.00707601]
[1732553110602,0.052119,95911.0,95909.0,0.052119]
[1732553110799,0.412919,95911.0,95909.0,0.052119]
[1732553111608,0.36092389,95923.0,95904.0,0.19844912]
[1732553111793,0.00012389,95923.0,95921.0,0.052112]
[1732553112795,0.3608,95931.0,95930.0,0.052108]
[1732553113301,0.3608,95931.0,95923.0,0.19836]
[1732553113601,0.3608,95931.0,95923.0,0.052112]
[1732553113795,9.069e-05,95927.0,95921.0,0.14085949]
[1732553114101,9.069e-05,95927.0,95918.0,0.412914]
[1732553114295,9.069e-05,95927.0,95918.0,0.3925874]
[1732553114695,9.069e-05,95927.0,95921.0,0.052112]
[1732553114895,9.069e-05,95927.0,95918.0,0.0317874]
[1732553114896,9.069e-05,95927.0,95923.0,0.052111]
[1732553115103,9.069e-05,95927.0,95917.0,0.052115]
[1732553115507,9.069e-05,95927.0,95915.0,0.0465]
[1732553116000,9.069e-05,95927.0,95915.0,0.03115209]
[1732553116001,0.052114,95920.0,95915.0,0.03115209]
[1732553116202,0.3608,95923.0,95914.0,0.0492]
[1732553116592,0.3608,95923.0,95914.0,0.07997612]
[1732553117096,0.3608,95915.0,95914.0,0.07997612]
[1732553117294,0.412916,95915.0,95914.0,0.03077612]
[1732553117494,0.412916,95915.0,95904.0,8.912e-05]
[1732553117700,0.09312703,95907.0,95904.0,8.912e-05]
[1732553117897,0.3608,95907.0,95904.0,8.912e-05]